fUSD/lending_fUSD_20241001
["ID","MTS","AMOUNT","RATE_DAILY","PERIOD"]
[339663919,1727820713415,-4914.93,0.00038356,120]
[339663920,1727820713430,-2617.4,0.00038356,120]
[339663921,1727820713445,-2149.87,0.00038356,120]
[339663922,1727820713459,-1890.45,0.00038356,120]
[339663923,1727820713472,-500.0,0.00038356,120]
[339663924,1727820713487,-500.0,0.00038356,120]
[339663925,1727820713502,-1649.36,0.00038356,120]
[339663926,1727820713517,-500.0,0.00038356,120]
[339663927,1727820713532,-500.0,0.00038356,120]
[339663928,1727820713547,-500.0,0.00038356,120]
[339663929,1727820713561,-500.0,0.00038356,120]
[339663930,1727820713576,-2406.64,0.00038356,120]
[339663931,1727820713590,-1461.25,0.00038356,120]
[339663932,1727820713604,-1568.55,0.00038356,120]
[339663933,1727820713619,-1084.08,0.00038356,120]
[339663934,1727820713635,-500.0,0.00038356,120]
[339663935,1727820713649,-1930.59,0.00038356,120]
[339663936,1727820713666,-500.0,0.00038356,120]
[339663937,1727820713689,-4446.49,0.00038356,120]
[339663938,1727820713705,-682.28,0.00038356,120]
[339663939,1727820713720,-1023.78,0.00038356,120]
[339663940,1727820713735,-867.75,0.00038356,120]
[339663941,1727820713749,-2028.77,0.00038356,120]
[339663942,1727820713764,-500.0,0.00038356,120]
[339663943,1727820713778,-1990.55,0.00038356,120]
[339663944,1727820713793,-500.0,0.00038356,120]
[339663945,1727820713807,-500.0,0.00038356,120]
[339663946,1727820713822,-500.0,0.00038356,120]
[339663947,1727820713836,-4386.65,0.00038356,120]
[339663948,1727820713851,-1031.31,0.00038356,120]
[339663949,1727820713865,-500.0,0.00038356,120]
[339663950,1727820713880,-500.0,0.00038356,120]
[339663951,1727820713894,-500.0,0.00038356,120]
[339663952,1727820713909,-500.0,0.00038356,120]
[339663953,1727820713923,-500.0,0.00038356,2]
[339663954,1727820713941,-4452.22,0.00038356,120]
[339663955,1727820713958,-525.33,0.00038356,120]
[339663956,1727820713975,-959.26,0.00038356,120]
[339663957,1727820713991,-500.0,0.00038356,120]
[339663958,1727820714008,-500.0,0.00038356,120]
[339663959,1727820714024,-1661.65,0.00038356,120]
[339663960,1727820714040,-677.36,0.00038356,120]
[339663961,1727820714056,-500.0,0.00038356,120]
[339663962,1727820714071,-2137.91,0.00038356,120]
[339663963,1727820714086,-1601.79,0.00038356,120]
[339663964,1727820714102,-854.5,0.00038356,120]
[339663965,1727820714117,-531.90324242,0.00038356,120]
[339663966,1727820714133,-500.0,0.00038356,120]
[339663967,1727820714148,-790.95,0.00038356,120]
[339663968,1727820714162,-500.0,0.00038356,120]
[339663969,1727820714177,-500.0,0.00038356,120]
[339663970,1727820714192,-500.0,0.00038356,120]
[339663971,1727820714206,-500.0,0.00038356,120]
[339663972,1727820714221,-500.0,0.00038356,120]
[339663973,1727820714235,-1114.17,0.00038356,120]
[339663974,1727820714249,-500.0,0.00038356,120]
[339663975,1727820714264,-4846.83,0.00038356,120]
[339663976,1727820714279,-500.0,0.00038356,120]
[339663977,1727820714293,-500.0,0.00038356,120]
[339663978,1727820714308,-12554.0,0.00038356,21]
[339663979,1727820714324,-500.0,0.00038356,120]
[339663980,1727820714339,-500.0,0.00038356,120]
[339663981,1727820714353,-500.0,0.00038356,120]
[339663982,1727820714370,-330.42783368,0.00038356,120]
[339663983,1727820714388,-502.69710373,0.00038356,120]
[339663984,1727820714404,-1529.29,0.00038356,120]
[339663985,1727820714420,-500.0,0.00038356,120]
[339663986,1727820714435,-709.79,0.00038356,120]
[339663987,1727820714451,-1767.66,0.00038356,120]
[339663988,1727820714465,-500.0,0.00038356,120]
[339663989,1727820714481,-1511.8,0.00038356,120]
[339663990,1727820714495,-877.21,0.00038356,120]
[339663991,1727820714510,-500.0,0.00038356,120]
[339663992,1727820714525,-945.09,0.00038356,120]
[339663993,1727820714541,-500.0,0.00038356,120]
[339663994,1727820714555,-1047.64,0.00038356,120]
[339663995,1727820714570,-1347.25,0.00038356,120]
[339663996,1727820714585,-1869.39,0.00038356,120]
[339663997,1727820714600,-1709.97,0.00038356,120]
[339663998,1727820714614,-2022.15,0.00038356,120]
[339663999,1727820714632,-500.0,0.00038356,120]
[339664000,1727820714647,-1933.11,0.00038356,120]
[339664001,1727820714662,-1560.47,0.00038356,120]
[339664002,1727820714677,-595.71,0.00038356,120]
[339664003,1727820714693,-500.32190688,0.00038356,120]
[339664004,1727820714708,-3847.15,0.00038356,120]
[339664005,1727820714723,-500.0,0.00038356,120]
[339664006,1727820714738,-1415.25,0.00038356,120]
[339664007,1727820714754,-500.0,0.00038356,2]
[339664008,1727820714768,-804.68,0.00038356,120]
[339664009,1727820714783,-670.45,0.00038356,120]
[339664010,1727820714798,-500.0,0.00038356,7]
[339664011,1727820714813,-556.97,0.00038356,120]
[339664012,1727820715143,-1420.1,0.00038356,120]
[339664013,1727820715162,-2451.79,0.00038356,120]
[339664014,1727820715179,-837.57,0.00038356,120]
[339664015,1727820715188,-500.0,0.00038356,120]
[339664016,1727820715198,-5533.52,0.00038356,120]
[339664017,1727820715212,-1738.11,0.00038356,120]
[339664018,1727820715221,-980.72,0.00038356,120]
[339664019,1727820715230,-500.0,0.00038356,120]
[339664020,1727820715240,-500.0,0.00038356,120]
[339664021,1727820715250,-6787.03,0.00038356,120]
[339664022,1727820715259,-200.0,0.00038356,60]
[339664023,1727820715269,-300.0,0.0003837,2]
[339664024,1727820715279,-300.0,0.0003837,2]
[339664025,1727820715289,-514.54932685,0.0003838,7]
[339664026,1727820715298,-593.08731422,0.0003838,7]
[339664027,1727820715308,-947.99133299,0.0003838,7]
[339664028,1727820715318,-2348.72887352,0.000384,33]
[339664029,1727820715327,-682.3725,0.000384,2]
[339664030,1727820715337,-150.0,0.00038433,120]
[339664031,1727820715347,-52148.11808575,0.000385,120]
[339664032,1727820715356,-743.30431528,0.000385,120]
[339664033,1727820715366,-179.14576945,0.000385,120]
[339664034,1727820715375,-1000000.0,0.000385,120]
[339664035,1727820715386,-2110.0,0.000385,2]
[339664036,1727820715395,-500.0,0.000385,120]
[339664037,1727820715404,-263.3,0.000385,120]
[339664038,1727820715413,-150.0,0.00038582,120]
[339664039,1727820715422,-150.0,0.00038586,120]
[339664040,1727820715432,-1400.0,0.00038594,10]
[339664041,1727820715441,-1344.42,0.0003863,120]
[339664042,1727820715450,-428.61272136,0.0003863,120]
[339664043,1727820715459,-500.0,0.0003863,120]
[339664044,1727820715469,-500.0,0.0003863,120]
[339664045,1727820715478,-500.0,0.0003863,120]
[339664046,1727820715488,-500.0,0.0003863,120]
[339664047,1727820715498,-500.0,0.0003863,120]
[339664048,1727820715508,-500.0,0.0003863,120]
[339664049,1727820715517,-500.0,0.0003863,120]
[339664050,1727820715526,-500.0,0.0003863,120]
[339664051,1727820715536,-500.0,0.0003863,120]
[339664052,1727820715546,-500.0,0.0003863,120]
[339664053,1727820715556,-500.0,0.0003863,120]
[339664054,1727820715565,-500.0,0.0003863,120]
[339664055,1727820715574,-500.0,0.0003863,120]
[339664056,1727820715584,-500.0,0.0003863,120]
[339664057,1727820715593,-500.0,0.0003863,120]
[339664058,1727820715603,-500.0,0.0003863,120]
[339664059,1727820715612,-500.0,0.0003863,120]
[339664060,1727820715623,-500.0,0.0003863,120]
[339664061,1727820715636,-500.0,0.0003863,120]
[339664062,1727820715646,-500.0,0.0003863,120]
[339664063,1727820715655,-500.0,0.0003863,120]
[339664064,1727820715665,-500.0,0.0003863,120]
[339664065,1727820715674,-500.0,0.0003863,120]
[339664066,1727820715683,-500.0,0.0003863,120]
[339664067,1727820715693,-623.89090867,0.0003863,2]
[339664068,1727820715703,-500.0,0.0003863,120]
[339664069,1727820715713,-500.0,0.0003863,120]
[339664070,1727820715722,-500.0,0.0003863,120]
[339664071,1727820715731,-500.0,0.0003863,120]
[339664072,1727820715741,-500.0,0.0003863,120]
[339664073,1727820715752,-500.0,0.0003863,120]
[339664074,1727820715762,-500.0,0.0003863,120]
[339664075,1727820715771,-500.0,0.0003863,120]
[339664076,1727820715781,-500.0,0.0003863,120]
[339664077,1727820715790,-500.0,0.0003863,120]
[339664078,1727820715799,-500.0,0.0003863,120]
[339664079,1727820715809,-500.0,0.0003863,120]
[339664080,1727820715818,-500.0,0.0003863,120]
[339664081,1727820715828,-500.0,0.0003863,120]
[339664082,1727820715837,-188.12708358,0.0003863,120]
[339664083,1727820715846,-500.0,0.0003863,120]
[339664084,1727820715855,-485.2713723,0.0003863,120]
[339664085,1727820715864,-500.0,0.0003863,120]
[339664086,1727820715874,-500.0,0.0003863,120]
[339664087,1727820715884,-500.0,0.0003863,120]
[339664088,1727820715893,-500.0,0.0003863,120]
[339664089,1727820715903,-500.0,0.0003863,120]
[339664090,1727820715912,-500.0,0.0003863,120]
[339664091,1727820715921,-500.0,0.0003863,120]
[339664092,1727820715931,-500.0,0.0003863,120]
[339664093,1727820715941,-500.0,0.0003863,120]
[339664094,1727820715951,-500.0,0.0003863,120]
[339664095,1727820715961,-500.0,0.0003863,120]
[339664096,1727820715970,-625.81,0.0003863,120]
[339664097,1727820715979,-500.0,0.0003863,120]
[339664098,1727820715988,-1230.79,0.0003863,120]
[339664099,1727820715998,-500.0,0.0003863,120]
[339664100,1727820716007,-1018.83,0.0003863,120]
[339664101,1727820716017,-501.4746063,0.0003863,120]
[339664102,1727820716026,-500.0,0.0003863,120]
[339664103,1727820716036,-623.10338754,0.0003863,120]
[339664104,1727820716045,-210.10579487,0.0003863,120]
[339664105,1727820716055,-500.0,0.0003863,120]
[339664106,1727820716065,-2618.09,0.0003863,120]
[339664107,1727820716075,-500.0,0.0003863,120]
[339664108,1727820716084,-500.0,0.0003863,120]
[339664109,1727820716093,-347.46912137,0.0003863,120]
[339664110,1727820716102,-869.23,0.0003863,120]
[339664111,1727820716112,-1127.66,0.0003863,120]
[339664112,1727820716123,-500.0,0.0003863,120]
[339664113,1727820716133,-500.0,0.0003863,120]
[339664114,1727820716142,-500.0,0.0003863,120]
[339664115,1727820716151,-500.0,0.0003863,120]
[339664116,1727820716161,-1370.44,0.0003863,120]
[339664117,1727820716171,-500.0,0.0003863,120]
[339664118,1727820716180,-1287.86,0.0003863,120]
[339664119,1727820716189,-709.65,0.0003863,120]
[339664120,1727820716198,-500.0,0.0003863,120]
[339664121,1727820716208,-500.0,0.0003863,120]
[339664122,1727820716218,-500.0,0.0003863,120]
[339664123,1727820716228,-500.0,0.0003863,120]
[339664124,1727820716238,-500.0,0.0003863,120]
[339664125,1727820716249,-500.0,0.0003863,120]
[339664126,1727820716259,-500.0,0.0003863,120]
[339664127,1727820716268,-500.0,0.0003863,120]
[339664128,1727820716278,-445.56253343,0.0003863,120]
[339664129,1727820716287,-500.0,0.0003863,120]
[339664130,1727820716297,-944.29,0.0003863,120]
[339664131,1727820716306,-500.0,0.0003863,120]
[339664132,1727820716317,-150.0,0.0003863,120]
[339664133,1727820716326,-1933.88,0.0003863,120]
[339664134,1727820716335,-500.0,0.0003863,120]
[339664135,1727820716346,-500.0,0.0003863,120]
[339664136,1727820716355,-500.0,0.0003863,120]
[339664137,1727820716364,-502.00008155,0.0003863,120]
[339664138,1727820716374,-523.09,0.0003863,120]
[339664139,1727820716383,-500.0,0.0003863,120]
[339664140,1727820716392,-500.0,0.0003863,120]
[339664141,1727820716401,-500.0,0.0003863,120]
[339664142,1727820716411,-500.0,0.0003863,120]
[339664143,1727820716420,-1869.94,0.0003863,120]
[339664144,1727820716430,-944.0,0.0003863,120]
[339664145,1727820716440,-300.0,0.0003863,120]
[339664146,1727820716449,-502.81451146,0.0003863,120]
[339664147,1727820716459,-687.72,0.0003863,120]
[339664148,1727820716469,-502.48789166,0.0003863,120]
[339664149,1727820716478,-500.0,0.0003863,120]
[339664150,1727820716488,-1628.22,0.0003863,120]
[339664151,1727820716498,-500.0,0.0003863,120]
[339664152,1727820716507,-2438.96,0.0003863,120]
[339664153,1727820716516,-1081.33,0.0003863,120]
[339664154,1727820716526,-500.0,0.0003863,120]
[339664155,1727820716535,-500.0,0.0003863,120]
[339664156,1727820716544,-500.0,0.0003863,120]
[339664157,1727820716554,-1044.69,0.0003863,120]
[339664158,1727820716563,-500.0,0.0003863,2]
[339664159,1727820716574,-1113.88,0.0003863,120]
[339664160,1727820716583,-500.0,0.0003863,120]
[339664161,1727820716592,-805.08,0.0003863,120]
[339664162,1727820716602,-500.0,0.0003863,120]
[339664163,1727820716611,-500.0,0.0003863,120]
[339664164,1727820716620,-500.0,0.0003863,120]
[339664165,1727820716637,-500.0,0.0003863,120]
[339664166,1727820716654,-730.3,0.0003863,120]
[339664167,1727820716664,-1894.13,0.0003863,120]
[339664168,1727820716674,-500.0,0.0003863,120]
[339664169,1727820716684,-500.0,0.0003863,120]
[339664170,1727820716694,-845.87,0.0003863,120]
[339664171,1727820716704,-500.0,0.0003863,120]
[339664172,1727820716713,-500.0,0.0003863,120]
[339664173,1727820716722,-1585.53,0.0003863,120]
[339664174,1727820716732,-500.0,0.0003863,120]
[339664175,1727820716742,-500.0,0.0003863,120]
[339664176,1727820716752,-500.0,0.0003863,120]
[339664177,1727820716762,-2817.76,0.0003863,120]
[339664178,1727820716771,-500.0,0.0003863,120]
[339664179,1727820716781,-500.0,0.0003863,120]
[339664180,1727820716791,-500.0,0.0003863,120]
[339664181,1727820716800,-803.86,0.0003863,120]
[339664182,1727820716810,-558.1,0.0003863,120]
[339664183,1727820716819,-500.0,0.0003863,30]
[339664184,1727820716828,-500.0,0.0003863,120]
[339664185,1727820716839,-1367.78,0.0003863,120]
[339664186,1727820716848,-500.0,0.0003863,120]
[339664187,1727820716858,-1130.66,0.0003863,120]
[339664188,1727820716867,-542.4,0.0003863,120]
[339664189,1727820716876,-500.0,0.0003863,16]
[339664190,1727820716886,-762.58,0.0003863,120]
[339664191,1727820716895,-888.16,0.0003863,120]
[339664192,1727820716905,-1312.78,0.0003863,120]
[339664193,1727820716915,-502.50130331,0.0003863,120]
[339664194,1727820716924,-500.0,0.0003863,120]
[339664195,1727820716934,-879.45,0.0003863,120]
[339664196,1727820716944,-500.0,0.0003863,120]
[339664197,1727820716953,-500.0,0.0003863,120]
[339664198,1727820716963,-500.0,0.0003863,120]
[339664199,1727820716973,-500.0,0.0003863,120]
[339664200,1727820716983,-500.0,0.0003863,120]
[339664201,1727820716993,-500.0,0.0003863,120]
[339664202,1727820717003,-500.0,0.0003863,120]
[339664203,1727820717013,-500.0,0.0003863,120]
[339664204,1727820717023,-500.0,0.0003863,120]
[339664205,1727820717033,-500.0,0.0003863,120]
[339664206,1727820717043,-500.0,0.0003863,120]
[339664207,1727820717052,-500.0,0.0003863,120]
[339664208,1727820717062,-2684.85,0.0003863,120]
[339664209,1727820717071,-989.53,0.0003863,120]
[339664210,1727820717081,-512.93,0.0003863,120]
[339664211,1727820717091,-500.0,0.0003863,120]
[339664212,1727820717101,-1296.3,0.0003863,120]
[339664213,1727820717110,-732.19,0.0003863,120]
[339664214,1727820717120,-500.0,0.0003863,120]
[339664215,1727820717130,-434.46657225,0.0003863,120]
[339664216,1727820717139,-500.0,0.0003863,120]
[339664217,1727820717149,-500.0,0.0003863,120]
[339664218,1727820717158,-500.0,0.0003863,120]
[339664219,1727820717168,-1175.42,0.0003863,120]
[339664220,1727820717177,-500.0,0.0003863,120]
[339664221,1727820717186,-500.0,0.0003863,120]
[339664222,1727820717195,-500.0,0.0003863,120]
[339664223,1727820717204,-500.0,0.0003863,120]
[339664224,1727820717213,-338.97183911,0.0003863,120]
[339664225,1727820717223,-500.0,0.0003863,120]
[339664226,1727820717232,-500.0,0.0003863,120]
[339664227,1727820717241,-500.0,0.0003863,120]
[339664228,1727820717251,-500.0,0.0003863,120]
[339664229,1727820717261,-789.08,0.0003863,120]
[339664230,1727820717270,-592.14,0.0003863,120]
[339664231,1727820717281,-1575.7,0.0003863,120]
[339664232,1727820717291,-1058.03,0.0003863,120]
[339664233,1727820717300,-500.0,0.0003863,120]
[339664234,1727820717312,-500.0,0.0003863,120]
[339664235,1727820717322,-500.0,0.0003863,120]
[339664236,1727820717331,-794.51,0.0003863,120]
[339664237,1727820717341,-500.0,0.0003863,120]
[339664238,1727820717350,-500.0,0.0003863,120]
[339664239,1727820717360,-1083.85,0.0003863,120]
[339664240,1727820717369,-500.0,0.0003863,120]
[339664241,1727820717379,-500.0,0.0003863,120]
[339664242,1727820717390,-506.13,0.0003863,120]
[339664243,1727820717400,-1154.19,0.0003863,120]
[339664244,1727820717410,-500.0,0.0003863,120]
[339664245,1727820717420,-500.0,0.0003863,120]
[339664246,1727820717430,-1462.22,0.0003863,120]
[339664247,1727820717439,-500.0,0.0003863,30]
[339664248,1727820717449,-1285.95,0.0003863,120]
[339664249,1727820717458,-594.92455468,0.0003863,120]
[339664250,1727820717467,-500.0,0.0003863,120]
[339664251,1727820717477,-500.0,0.0003863,120]
[339664252,1727820717487,-500.0,0.0003863,120]
[339664253,1727820717496,-500.0,0.0003863,120]
[339664254,1727820717507,-500.0,0.0003863,120]
[339664255,1727820717516,-1335.38,0.0003863,120]
[339664256,1727820717526,-1084.42,0.0003863,120]
[339664257,1727820717536,-516.44,0.0003863,120]
[339664258,1727820717545,-212.1460479,0.0003863,120]
[339664259,1727820717555,-1361.89,0.0003863,120]
[339664260,1727820717564,-544.53945664,0.0003863,60]
[339664261,1727820717574,-500.0,0.0003863,120]
[339664262,1727820717583,-634.68,0.0003863,120]
[339664263,1727820717593,-500.0,0.0003863,120]
[339664264,1727820717603,-669.44,0.0003863,120]
[339664265,1727820717612,-500.0,0.0003863,30]
[339664266,1727820717621,-500.0,0.0003863,120]
[339664267,1727820717634,-500.0,0.0003863,120]
[339664268,1727820717643,-1067.45,0.0003863,120]
[339664269,1727820717652,-500.0,0.0003863,120]
[339664270,1727820717662,-500.0,0.0003863,120]
[339664271,1727820717673,-500.0,0.0003863,120]
[339664272,1727820717682,-1550.27,0.0003863,120]
[339664273,1727820717692,-947.2,0.0003863,120]
[339664274,1727820717702,-500.0,0.0003863,120]
[339664275,1727820717712,-745.55,0.0003863,120]
[339664276,1727820717721,-1478.79,0.0003863,120]
[339664277,1727820717733,-533.51,0.0003863,120]
[339664278,1727820717742,-500.0,0.0003863,120]
[339664279,1727820717752,-500.0,0.0003863,120]
[339664280,1727820717761,-500.0,0.0003863,120]
[339664281,1727820717770,-1998.44,0.0003863,120]
[339664282,1727820717779,-630.72,0.0003863,120]
[339664283,1727820717789,-1648.28,0.0003863,120]
[339664284,1727820717799,-500.0,0.0003863,120]
[339664285,1727820717808,-500.0,0.0003863,120]
[339664286,1727820717818,-690.57,0.0003863,120]
[339664287,1727820717827,-1526.16,0.0003863,120]
[339664288,1727820717837,-500.0,0.0003863,120]
[339664289,1727820717846,-645.27,0.0003863,120]
[339664290,1727820717855,-529.17,0.0003863,120]
[339664291,1727820717865,-500.0,0.0003863,120]
[339664292,1727820717874,-1154.28,0.0003863,120]
[339664293,1727820717884,-500.0,0.0003863,120]
[339664294,1727820717893,-1705.01,0.0003863,120]
[339664295,1727820717902,-500.0,0.0003863,120]
[339664296,1727820717912,-500.0,0.0003863,120]
[339664297,1727820717921,-500.0,0.0003863,120]
[339664298,1727820717930,-500.0,0.0003863,120]
[339664299,1727820717940,-500.0,0.0003863,120]
[339664300,1727820717950,-1121.16,0.0003863,120]
[339664301,1727820717959,-1850.36,0.0003863,120]
[339664302,1727820717968,-1129.51,0.0003863,120]
[339664303,1727820717978,-500.0,0.0003863,120]
[339664304,1727820717987,-978.74,0.0003863,120]
[339664305,1727820717996,-791.42,0.0003863,120]
[339664306,1727820718006,-889.83,0.0003863,120]
[339664307,1727820718015,-673.51,0.0003863,120]
[339664308,1727820718025,-500.0,0.0003863,120]
[339664309,1727820718034,-500.0,0.0003863,120]
[339664310,1727820718044,-500.0,0.0003863,120]
[339664311,1727820718054,-500.0,0.0003863,120]
[339664312,1727820718063,-500.0,0.0003863,120]
[339664313,1727820718072,-500.0,0.0003863,120]
[339664314,1727820718081,-500.0,0.0003863,120]
[339664315,1727820718091,-500.0,0.0003863,120]
[339664316,1727820718100,-500.0,0.0003863,120]
[339664317,1727820718111,-683.14,0.0003863,120]
[339664318,1727820718122,-1883.48,0.0003863,120]
[339664319,1727820718133,-500.0,0.0003863,120]
[339664320,1727820718142,-2097.27,0.0003863,120]
[339664321,1727820718152,-500.0,0.0003863,120]
[339664322,1727820718161,-500.0,0.0003863,120]
[339664323,1727820718172,-1083.58,0.0003863,120]
[339664324,1727820718181,-1341.3,0.0003863,120]
[339664325,1727820718190,-523.47,0.0003863,120]
[339664326,1727820718199,-726.8,0.0003863,120]
[339664327,1727820718208,-681.82,0.0003863,120]
[339664328,1727820718218,-2847.32,0.0003863,120]
[339664329,1727820718229,-767.3,0.0003863,120]
[339664330,1727820718239,-500.0,0.0003863,120]
[339664331,1727820718248,-534.24,0.0003863,120]
[339664332,1727820718258,-500.0,0.0003863,120]
[339664333,1727820718267,-500.0,0.0003863,120]
[339664334,1727820718276,-1255.83,0.0003863,5]
[339664335,1727820718285,-641.21,0.0003863,120]
[339664336,1727820718294,-500.0,0.0003863,120]
[339664337,1727820718303,-1095.54,0.0003863,120]
[339664338,1727820718315,-591.17,0.0003863,120]
[339664339,1727820718324,-2202.17,0.0003863,120]
[339664340,1727820718536,-500.0,0.0003863,120]
[339664341,1727820718571,-500.0,0.0003863,120]
[339664342,1727820718580,-500.0,0.0003863,120]
[339664343,1727820718589,-500.0,0.0003863,120]
[339664344,1727820718599,-596.83,0.0003863,120]
[339664345,1727820718609,-500.0,0.0003863,120]
[339664346,1727820718619,-500.0,0.0003863,120]
[339664347,1727820718630,-500.0,0.0003863,120]
[339664348,1727820718643,-577.02,0.0003863,120]
[339664349,1727820718653,-500.0,0.0003863,120]
[339664350,1727820718662,-649.43,0.0003863,120]
[339664351,1727820718672,-500.0,0.0003863,120]
[339664352,1727820718682,-500.0,0.0003863,120]
[339664353,1727820718691,-500.0,0.0003863,120]
[339664354,1727820718701,-500.0,0.0003863,120]
[339664355,1727820718711,-601.36321762,0.0003863,120]
[339664356,1727820718721,-500.0,0.0003863,120]
[339664357,1727820718731,-501.63244218,0.0003863,120]
[339664358,1727820718740,-3472.21,0.0003863,120]
[339664359,1727820718751,-2000.0,0.0003863,30]
[339664360,1727820718760,-500.0,0.0003863,120]
[339664361,1727820718770,-943.1,0.0003863,120]
[339664362,1727820718779,-500.0,0.0003863,120]
[339664363,1727820718789,-1481.97,0.0003863,120]
[339664364,1727820718798,-500.0,0.0003863,120]
[339664365,1727820718807,-500.0,0.0003863,120]
[339664366,1727820718817,-1133.76,0.0003863,120]
[339664367,1727820718826,-500.0,0.0003863,120]
[339664368,1727820718835,-767.63,0.0003863,120]
[339664369,1727820718845,-500.0,0.0003863,120]
[339664370,1727820718854,-1356.91,0.0003863,30]
[339664371,1727820718863,-500.0,0.0003863,120]
[339664372,1727820718872,-1544.47,0.0003863,120]
[339664373,1727820718881,-500.0,0.0003863,120]
[339664374,1727820718890,-1014.81,0.0003863,120]
[339664375,1727820718899,-500.0,0.0003863,120]
[339664376,1727820718909,-500.0,0.0003863,120]
[339664377,1727820718918,-875.49,0.0003863,120]
[339664378,1727820718927,-500.0,0.0003863,120]
[339664379,1727820718936,-1665.5,0.0003863,120]
[339664380,1727820718946,-500.0,0.0003863,120]
[339664381,1727820718955,-500.0,0.0003863,120]
[339664382,1727820718964,-1118.58,0.0003863,120]
[339664383,1727820718973,-500.0,0.0003863,120]
[339664384,1727820718982,-500.0,0.0003863,120]
[339664385,1727820718992,-500.0,0.0003863,30]
[339664386,1727820719001,-500.0,0.0003863,120]
[339664387,1727820719010,-500.0,0.0003863,120]
[339664388,1727820719020,-1943.98,0.0003863,120]
[339664389,1727820719029,-500.0,0.0003863,120]
[339664390,1727820719039,-500.0,0.0003863,120]
[339664391,1727820719049,-365.01427161,0.0003863,120]
[339664392,1727820719058,-500.0,0.0003863,120]
[339664393,1727820719068,-500.0,0.0003863,120]
[339664394,1727820719078,-500.0,0.0003863,120]
[339664395,1727820719088,-771.94,0.0003863,120]
[339664396,1727820719097,-3186.38,0.0003863,120]
[339664397,1727820719107,-500.0,0.0003863,120]
[339664398,1727820719117,-4357.71,0.0003863,120]
[339664399,1727820719126,-1781.52,0.0003863,120]
[339664400,1727820719135,-500.0,0.0003863,120]
[339664401,1727820719145,-1453.92,0.0003863,120]
[339664402,1727820719154,-2741.84,0.0003863,120]
[339664403,1727820719163,-500.0,0.0003863,120]
[339664404,1727820719173,-2160.18,0.0003863,120]
[339664405,1727820719182,-2622.79,0.0003863,120]
[339664406,1727820719191,-500.0,0.0003863,120]
[339664407,1727820719201,-500.0,0.0003863,120]
[339664408,1727820719210,-1585.54,0.0003863,120]
[339664409,1727820719219,-500.0,0.0003863,120]
[339664410,1727820719229,-1793.64,0.0003863,120]
[339664411,1727820719238,-500.0,0.0003863,120]
[339664412,1727820719247,-500.0,0.0003863,120]
[339664413,1727820719257,-500.0,0.0003863,2]
[339664414,1727820719266,-1356.0,0.0003863,120]
[339664415,1727820719275,-500.0,0.0003863,120]
[339664416,1727820719284,-716.89,0.0003863,120]
[339664417,1727820719294,-500.0,0.0003863,120]
[339664418,1727820719303,-500.0,0.0003863,120]